bitfinex/quotes_ETHUSD_20241024
["timestamp","ask_amount","ask_price","bid_price","bid_amount"]
[1729743120697,1.29525454,2548.4,2548.3,0.99940693]
[1729743121284,2.59050908,2548.4,2548.3,0.99940693]
[1729743123381,1.29525454,2548.4,2548.3,0.99940693]
[1729743123579,3.38060908,2548.4,2548.3,0.21783793]
[1729743123782,3.38060908,2548.4,2548.0,3.53208]
[1729743124003,2.59050908,2548.1,2548.0,3.53208]
[1729743124514,1.29525454,2548.1,2548.0,3.53208]
[1729743124721,1.29525454,2548.1,2548.0,4.321167]
[1729743124882,2.59050908,2548.1,2548.0,4.321167]
[1729743126414,0.7901,2548.6,2548.2,3.53182]
[1729743126640,1.29525454,2548.3,2548.0,8.679607]
[1729743126780,1.29525454,2548.1,2548.0,5.147527]
[1729743127281,2.59050908,2548.1,2548.0,5.147527]
[1729743127621,1.29525454,2548.1,2548.0,5.147527]
[1729743138743,1.29525454,2548.1,2548.0,4.321127]
[1729743141023,1.29525454,2548.1,2548.0,0.789087]
[1729743141224,0.7738,2548.0,2547.7,3.53252]
[1729743141545,1.29525454,2547.8,2547.7,3.53252]
[1729743141902,1.29525454,2547.8,2547.7,3.75013107]
[1729743143834,1.29525454,2547.8,2547.7,4.04450024]
[1729743144035,1.29525454,2547.8,2547.7,5.17795126]
[1729743144703,1.29525454,2547.8,2547.7,5.1779301]
[1729743148052,1.29525454,2547.8,2547.7,5.17786798]
[1729743148214,1.29525454,2547.8,2547.7,4.88358209]
[1729743148732,1.29525454,2547.8,2547.7,5.17786402]
[1729743150708,1.29525454,2547.9,2547.8,3.53244]
[1729743150947,1.29525454,2547.9,2547.8,4.77348733]
[1729743151250,1.29525454,2547.9,2547.8,4.99122054]
[1729743151403,1.29525454,2548.0,2547.9,3.5322]
[1729743151601,1.29525454,2548.0,2547.9,3.82648193]
[1729743152105,1.29525454,2548.0,2547.9,4.04421514]
[1729743152310,1.29525454,2548.0,2547.9,4.73879695]
[1729743152706,0.7912,2548.2,2547.9,4.73879695]
[1729743152707,0.7912,2548.2,2548.1,3.53204]
[1729743152934,2.08645454,2548.2,2548.1,3.82632193]
[1729743153247,2.08645454,2548.2,2548.1,0.51201514]
[1729743154150,2.08645454,2548.2,2548.1,4.04405514]
[1729743154644,2.08645454,2548.2,2548.1,0.51201514]
[1729743155141,2.08645454,2548.2,2548.1,0.21773321]
[1729743155350,2.08645454,2548.2,2548.1,0.51196188]
[1729743156422,2.08645454,2548.2,2548.1,0.51040864]
[1729743157023,2.08645454,2548.2,2548.1,0.21617997]
[1729743162226,2.08645454,2548.2,2547.9,3.53231]
[1729743162416,1.29525454,2548.0,2547.9,3.53231]
[1729743163052,1.29525454,2548.0,2547.8,7.06475]
[1729743163452,1.29525454,2548.0,2547.8,3.53237]
[1729743165158,1.29525454,2548.0,2547.8,7.06476]
[1729743165631,1.29525454,2548.0,2547.9,3.53232]
[1729743165829,1.29525454,2548.0,2547.8,3.53237]
[1729743166046,1.29525454,2548.1,2547.9,3.53232]
[1729743167531,1.29525454,2548.1,2547.9,3.53224]
[1729743170518,1.29525454,2548.1,2547.9,7.06449]
[1729743170838,1.29525454,2548.1,2547.9,3.53224]
[1729743171562,1.29525454,2548.1,2547.9,7.06449]
[1729743171764,1.29525454,2548.1,2548.0,0.21634575]
[1729743181481,0.7912,2548.2,2548.0,0.21634575]
[1729743182562,1.29525454,2548.1,2548.0,0.21634575]
[1729743183398,0.7912,2548.2,2548.0,0.21634575]
[1729743183978,0.7912,2548.2,2548.0,3.74850575]
[1729743184388,0.7912,2548.2,2548.0,0.21634575]
[1729743189899,0.7912,2548.2,2548.0,3.74851575]
[1729743190108,0.7912,2548.2,2548.0,0.21634575]
[1729743202588,5.61649454,2548.1,2548.0,0.21634575]
[1729743203083,5.61649454,2548.1,2547.5,4.14710395]
[1729743203084,0.7892,2547.9,2547.5,4.14710395]
[1729743203288,1.29525454,2547.7,2547.5,4.14710395]
[1729743205023,1.29525454,2547.6,2547.5,4.14710395]
[1729743205179,2.09305454,2547.6,2547.5,0.61431395]
[1729743206000,5.62578454,2547.6,2547.5,0.61431395]
[1729743206201,2.65560699,2547.6,2547.2,3.53328]
[1729743206521,1.29525454,2547.5,2547.2,3.53328]
[1729743213027,2.09305454,2547.6,2547.2,3.53328]
[1729743213391,1.29525454,2547.5,2547.2,3.53328]
[1729743213919,1.29525454,2547.5,2547.1,4.14775367]
[1729743214121,1.29525454,2547.5,2547.1,7.68110367]
[1729743214799,1.29525454,2547.4,2547.1,4.14775367]
[1729743214999,1.29525454,2547.4,2547.1,3.53332]
[1729743215198,0.7978,2547.3,2547.1,3.53332]
[1729743215738,2.09305454,2547.3,2547.1,3.53332]
[1729743215922,2.09305454,2547.3,2546.9,3.53367]
[1729743215923,2.09305454,2547.3,2546.9,3.53364]
[1729743216734,2.09305454,2547.3,2547.0,0.21010853]
[1729743217237,2.09305454,2547.3,2547.0,3.74366853]
[1729743219504,0.7978,2547.3,2547.0,3.74366853]
[1729743219897,2.09305454,2547.3,2547.0,0.21010853]
[1729743220114,6.18881199,2547.3,2546.8,3.53376]
[1729743220334,3.53336,2547.2,2547.1,0.21010853]
[1729743220545,4.82861454,2547.2,2546.7,0.61445819]
[1729743220853,3.53336,2547.2,2547.1,0.20339665]
[1729743221040,4.82861454,2547.2,2546.7,0.61445819]
[1729743221224,3.53336,2547.2,2547.1,0.20339665]
[1729743221425,4.37605275,2547.2,2546.7,4.14843819]
[1729743221613,3.53336,2547.2,2547.1,0.20339665]
[1729743221813,3.53336,2547.2,2546.7,4.14843819]
[1729743222014,3.53336,2547.2,2547.1,0.20339665]
[1729743222214,4.34374,2547.1,2546.7,0.61445819]
[1729743222435,5.63899454,2547.1,2546.7,0.61445819]
[1729743223914,5.63899454,2547.1,2546.7,4.14842819]
[1729743224339,5.63899454,2547.1,2546.7,0.61445819]
[1729743225115,1.29525454,2547.0,2546.6,7.6041]
[1729743225324,5.63899454,2547.1,2546.6,7.6041]
[1729743227152,9.17249454,2547.1,2546.6,7.6041]
[1729743227352,5.63899454,2547.1,2546.6,7.6041]
[1729743230364,1.29525454,2547.0,2546.6,3.5341]
[1729743231065,5.63899454,2547.1,2546.6,3.5341]
[1729743231878,5.63899454,2547.1,2546.7,0.20348396]
[1729743232371,1.29525454,2546.9,2546.7,0.20348396]
[1729743232573,2.10555454,2546.8,2546.4,4.33751]
[1729743233063,0.8103,2546.8,2546.4,4.33751]
[1729743233639,0.8103,2546.8,2546.4,4.33749]
[1729743233869,4.34415,2546.8,2546.4,4.33749]
[1729743234160,5.63940454,2546.8,2546.4,4.33749]
[1729743234361,2.10555454,2546.8,2546.4,4.33749]
[1729743235242,2.10555454,2546.8,2546.4,3.53429]
[1729743235670,5.63946454,2546.8,2546.3,4.14906533]
[1729743236764,2.10555454,2546.8,2546.3,4.14906533]
[1729743237976,5.63941454,2546.8,2546.3,4.14906533]
[1729743238672,2.10555454,2546.8,2546.3,4.14906533]
[1729743240070,2.10555454,2546.8,2546.4,3.53438]
[1729743242036,2.10555454,2546.8,2546.4,7.06876]
[1729743242679,2.10555454,2546.8,2546.5,3.53421]
[1729743243035,0.8103,2546.8,2546.5,3.53421]
[1729743243236,0.8103,2546.8,2546.5,3.53426]
[1729743243575,0.8103,2546.8,2546.5,4.43210299]
[1729743244382,0.8103,2546.8,2546.5,0.89784299]
[1729743244668,0.8103,2546.8,2546.4,7.06871]
[1729743244834,0.8103,2546.8,2546.5,3.53423]
[1729743245676,1.29525454,2546.9,2546.6,3.53411]
[1729743246838,1.29525454,2546.9,2546.7,0.19765918]
[1729743248042,1.29525454,2546.9,2546.5,4.367]
[1729743248245,1.29525454,2546.9,2546.8,0.19765918]
[1729743248442,1.29525454,2546.9,2546.5,4.367]
[1729743248643,1.29525454,2546.9,2546.8,0.19765918]
[1729743248842,1.29525454,2546.9,2546.5,4.367]
[1729743249383,1.29525454,2546.9,2546.6,0.19765918]
[1729743250078,1.29525454,2546.9,2546.6,3.73175918]
[1729743252884,2.04695454,2547.0,2546.6,3.73175918]
[1729743253692,1.29525454,2546.9,2546.6,3.73175918]
[1729743253915,2.04695454,2547.0,2546.6,3.73175918]
[1729743255098,2.04695454,2547.0,2546.6,0.19765918]
[1729743255099,5.58054454,2547.0,2546.6,0.19765918]
[1729743255593,5.58054454,2547.0,2546.6,3.73177918]
[1729743260271,0.7517,2547.0,2546.6,7.26580918]
[1729743260473,0.7517,2547.0,2546.6,3.73168918]
[1729743263474,4.28529,2547.0,2546.6,3.73168918]
[1729743264314,0.7517,2547.0,2546.6,3.73168918]
[1729743266398,0.55,2547.1,2546.7,3.53398]
[1729743266595,0.55,2547.1,2546.7,4.54627412]
[1729743266925,4.08351,2547.1,2546.7,1.01229412]
[1729743267226,5.59568454,2547.2,2546.7,4.54627412]
[1729743267227,0.7671,2547.2,2546.7,4.54627412]
[1729743267432,0.7671,2547.2,2546.8,3.5337]
[1729743267937,0.7671,2547.2,2546.9,3.53363]
[1729743268236,0.7671,2547.2,2546.9,0.19769412]
[1729743269758,4.30039,2547.2,2546.9,0.19769412]
[1729743269938,4.30039,2547.2,2546.8,3.53384]
[1729743269939,4.85995445,2547.2,2546.8,3.53384]
[1729743270146,4.85995445,2547.2,2547.0,0.19769412]
[1729743270451,4.85995445,2547.2,2546.8,3.53384]
[1729743270813,4.85995445,2547.2,2546.9,0.19769412]
[1729743271350,1.32666445,2547.2,2546.9,0.19769412]
[1729743272924,4.30019,2547.4,2546.9,1.01229412]
[1729743273111,3.53316,2547.3,2546.9,4.54598412]
[1729743275551,3.53316,2547.3,2546.9,1.01229412]
[1729743276060,3.5333,2547.2,2546.9,1.01229412]
[1729743276351,7.06669,2547.2,2546.9,1.01229412]
[1729743276556,3.5333,2547.2,2546.9,1.01229412]
[1729743276740,3.53343,2547.1,2546.9,1.01229412]
[1729743276937,3.5333,2547.2,2546.9,1.01229412]
[1729743277146,7.0667,2547.2,2546.9,1.01229412]
[1729743277457,7.06667,2547.2,2546.9,1.01229412]
[1729743277850,3.5333,2547.2,2546.9,1.01229412]
[1729743280435,7.06667,2547.2,2546.9,1.01229412]
[1729743280637,3.5333,2547.2,2546.9,1.01229412]
[1729743281366,3.53316,2547.3,2546.9,1.01229412]
[1729743282043,3.53335,2547.2,2546.9,1.01229412]
[1729743284850,7.06676,2547.2,2546.9,1.01229412]
[1729743285278,3.53335,2547.2,2546.9,1.01229412]
[1729743286563,7.90291245,2547.2,2546.9,1.01229412]
[1729743287114,7.90290245,2547.2,2546.9,1.01229412]
[1729743287590,4.36952245,2547.2,2546.9,1.01229412]
[1729743288497,3.53335,2547.2,2546.9,1.01229412]
[1729743288992,3.53311,2547.4,2546.9,1.01229412]
[1729743289153,3.53318,2547.3,2546.9,1.01229412]
[1729743289354,3.53311,2547.4,2546.9,2.30754866]
[1729743289564,3.53311,2547.4,2547.0,0.7921]
[1729743289789,3.53311,2547.4,2547.0,0.98987273]
[1729743290065,3.53311,2547.4,2547.0,4.52343273]
[1729743290265,3.53311,2547.4,2547.0,0.98987273]
[1729743290466,7.06622,2547.4,2547.0,0.98987273]
[1729743291310,3.53311,2547.4,2547.0,0.98987273]
[1729743291463,7.06622,2547.4,2547.0,0.98987273]
[1729743291660,3.53311,2547.4,2547.0,0.98987273]
[1729743292833,7.06624,2547.4,2547.0,0.98987273]
[1729743292989,3.53311,2547.4,2547.0,0.98987273]
[1729743293801,3.53309,2547.4,2547.0,0.98987273]
[1729743295325,7.06621,2547.4,2547.0,0.98987273]
[1729743295830,3.53317,2547.3,2547.0,0.98987273]
[1729743296391,2.13729511,2547.3,2547.0,0.19777273]
[1729743296649,0.8058,2546.9,2546.1,0.7584]
[1729743296924,3.53467,2546.2,2546.1,0.7584]
[1729743297123,3.53483,2546.1,2545.8,0.7584]
[1729743297838,3.53509,2545.9,2545.8,0.7584]
[1729743298140,3.53496,2546.0,2545.5,2.05365454]
[1729743298337,7.06999,2546.0,2545.5,2.05365454]
[1729743298620,7.06999,2546.0,2545.5,0.7584]
[1729743298842,3.53496,2546.0,2545.5,0.7584]
[1729743300015,7.07,2546.0,2545.5,0.7584]
[1729743300219,3.53496,2546.0,2545.5,0.7584]
[1729743300548,3.53496,2546.0,2545.5,2.05365454]
[1729743301247,3.53496,2546.0,2545.6,1.29525454]
[1729743301423,7.06999,2546.0,2545.5,2.05365454]
[1729743301741,3.53496,2546.0,2545.5,2.05365454]
[1729743302043,3.53496,2546.0,2545.6,1.29525454]
[1729743302204,3.53509,2545.9,2545.5,2.05365454]
[1729743302618,3.53511,2545.9,2545.5,2.05365454]
[1729743304647,2.10105454,2546.1,2545.5,0.7584]
[1729743304853,3.53551,2545.6,2545.3,0.7584]
[1729743305156,3.53542,2545.7,2545.3,0.7584]
[1729743305509,5.63669454,2545.6,2545.2,0.61476871]
[1729743305708,3.53587,2545.4,2545.2,0.61476871]
[1729743306320,3.53587,2545.4,2545.0,1.2634]
[1729743306847,3.53587,2545.4,2545.1,0.13796877]
[1729743307659,3.53596,2545.3,2545.1,0.13796877]
[1729743307860,3.53572,2545.5,2545.2,0.7584]
[1729743308160,3.53572,2545.5,2545.3,0.13360468]
[1729743308361,3.53572,2545.5,2545.2,0.7584]
[1729743308560,3.53566,2545.5,2545.4,0.13360468]
[1729743308782,3.53566,2545.5,2545.2,0.7584]
[1729743308951,3.53566,2545.5,2545.4,0.13360468]
[1729743309271,3.53566,2545.5,2545.2,0.7584]
[1729743309776,3.53566,2545.5,2545.3,0.13360468]
[1729743309961,3.53566,2545.5,2545.2,0.7584]
[1729743310161,3.53566,2545.5,2545.4,0.13360468]
[1729743310354,3.53566,2545.5,2545.2,0.7584]
[1729743310557,3.53566,2545.5,2545.4,0.13360468]
[1729743310748,3.53566,2545.5,2545.2,0.7584]
[1729743310967,3.53566,2545.5,2545.3,0.13360468]
[1729743311187,3.53566,2545.5,2545.2,0.7584]
[1729743311493,3.53566,2545.5,2545.4,0.13360468]
[1729743311693,4.34131,2545.6,2545.2,0.7584]
[1729743311909,7.07115,2545.6,2545.4,0.13360468]
[1729743312194,3.53551,2545.6,2545.5,0.13360468]
[1729743312391,3.53551,2545.6,2545.2,0.7584]
[1729743312559,3.53551,2545.6,2545.5,0.13360468]
[1729743312751,6.968921,2545.6,2545.2,1.2634]
[1729743312951,3.5357,2545.5,2545.3,0.13360468]
[1729743313191,3.5357,2545.5,2545.2,1.2634]
[1729743313390,3.5357,2545.5,2545.4,0.13360468]
[1729743313591,3.5357,2545.5,2545.2,1.2634]
[1729743313755,3.5357,2545.5,2545.4,0.13360468]
[1729743313956,6.968921,2545.6,2545.2,1.2634]
[1729743314151,3.53581,2545.4,2545.2,0.505]
[1729743314466,4.33452,2545.3,2545.2,0.505]
[1729743314897,0.7986,2545.3,2545.2,0.505]
[1729743315910,3.53581,2545.4,2545.2,0.505]
[1729743317918,3.53592,2545.3,2545.2,0.505]
[1729743318099,6.54633299,2545.3,2545.2,0.505]
[1729743318611,10.09633299,2545.3,2545.2,0.505]
[1729743320399,8.80107845,2545.3,2545.2,0.505]
[1729743324594,8.25107845,2545.3,2545.2,0.505]
[1729743325697,3.53592,2545.3,2545.2,0.505]
[1729743327118,4.08592,2545.3,2545.2,0.505]
[1729743327320,8.49802294,2545.3,2545.2,0.505]
[1729743328300,7.90472,2545.3,2545.2,0.505]
[1729743342292,9.1997147,2545.3,2545.2,0.505]
[1729743342493,10.47426717,2545.3,2545.2,0.505]
[1729743353800,10.48426717,2545.3,2545.2,0.505]
[1729743353997,10.49426717,2545.3,2545.2,0.505]
[1729743358147,23.17426717,2545.3,2545.2,0.505]
[1729743362144,21.86927247,2545.3,2545.2,0.505]
[1729743362350,22.34546717,2545.3,2545.2,0.505]
[1729743363115,21.04047247,2545.3,2545.2,0.505]
[1729743363315,21.0609147,2545.3,2545.2,0.505]
[1729743364070,8.3809147,2545.3,2545.2,0.505]
[1729743364977,7.08592,2545.3,2545.2,0.505]
[1729743365155,8.3809147,2545.3,2545.2,0.505]
[1729743366272,7.08592,2545.3,2545.2,0.505]
[1729743366492,8.3809147,2545.3,2545.2,0.505]
[1729743366631,8.3809147,2545.3,2545.2,0.68729921]
[1729743366834,8.3809147,2545.3,2545.2,0.505]
[1729743370369,3.53581,2545.4,2545.3,0.7877]
[1729743371073,4.8308047,2545.4,2545.3,0.96994712]
[1729743371237,3.53581,2545.4,2545.3,0.96994712]
[1729743378479,4.8308047,2545.4,2545.3,0.96994712]
[1729743378656,5.3808047,2545.4,2545.3,0.18224712]
[1729743378851,10.01825117,2545.4,2545.2,0.505]
[1729743379200,9.1817147,2545.3,2545.2,0.505]
[1729743396605,21.8617147,2545.3,2545.2,0.505]
[1729743400139,21.8617147,2545.3,2544.4,0.7987]
[1729743400140,3.53704,2544.5,2544.4,0.7987]
[1729743400435,7.8320347,2544.5,2544.4,0.7987]
[1729743400631,7.8320347,2544.5,2544.4,0.97509508]
[1729743400793,7.8320347,2544.5,2544.4,0.7987]
[1729743401215,7.8320347,2544.5,2544.4,0.97509508]
[1729743402237,6.53704,2544.5,2544.4,0.97509508]
[1729743402437,6.53704,2544.5,2544.4,0.7987]
[1729743402637,7.8320347,2544.5,2544.4,0.7987]
[1729743404256,6.53704,2544.5,2544.4,0.7987]
[1729743406825,3.53704,2544.5,2544.4,0.97549349]
[1729743409125,3.53704,2544.5,2544.4,0.7987]
[1729743409339,3.53704,2544.5,2544.4,0.97549349]
[1729743410633,3.53692,2544.6,2544.4,0.97549349]
[1729743411024,3.53692,2544.6,2544.5,0.7987]
[1729743411543,3.53692,2544.6,2544.5,0.97549349]
[1729743414336,7.07361,2544.7,2544.5,0.97549349]
[1729743414730,3.53677,2544.7,2544.5,0.97549349]
[1729743418358,3.53665,2544.8,2544.5,0.97549349]
[1729743418657,3.53665,2544.8,2544.6,0.7984]
[1729743419023,7.0732,2544.9,2544.7,0.97503759]
[1729743419424,3.53662,2544.8,2544.7,0.97503759]
[1729743421665,4.8316147,2544.8,2544.7,0.97503759]
[1729743421888,4.8316147,2544.8,2544.7,0.17663759]
[1729743422042,5.66843417,2544.8,2544.7,0.17663759]
[1729743422371,5.66843417,2544.8,2544.5,0.7984]
[1729743422372,3.5369,2544.6,2544.5,0.7984]
[1729743422772,3.5369,2544.6,2544.5,0.97503759]
[1729743428039,1.2949947,2545.0,2544.5,0.97503759]
[1729743428238,3.53664,2544.8,2544.5,0.97503759]
[1729743428460,3.53664,2544.8,2544.5,0.7984]
[1729743428652,3.53664,2544.8,2544.6,0.17667222]
[1729743431472,3.53662,2544.8,2544.6,0.17667222]
[1729743432174,3.53676,2544.7,2544.6,0.17667222]
[1729743435550,4.45445747,2544.7,2544.6,0.17667222]
[1729743437297,5.74945217,2544.7,2544.6,0.17667222]
[1729743437649,3.53717,2544.5,2544.3,0.7709]
[1729743439079,3.53693,2544.6,2544.3,0.7709]
[1729743439277,3.53711,2544.5,2544.3,0.7709]
[1729743440469,3.53717,2544.4,2544.3,0.7709]
[1729743441781,3.53704,2544.5,2544.3,0.94760685]
[1729743444382,4.11189222,2544.6,2544.3,0.94760685]
[1729743444585,3.53717,2544.4,2544.3,0.94760685]
[1729743444753,3.53717,2544.4,2544.3,0.7709]
[1729743445958,3.53717,2544.4,2544.3,0.94760685]
[1729743447353,3.53717,2544.4,2544.3,0.17670685]
[1729743447686,3.53717,2544.4,2544.0,1.2949947]
[1729743447687,3.53717,2544.4,2544.1,0.7672]
[1729743447888,3.53717,2544.4,2544.3,0.17670685]
[1729743448355,3.53717,2544.4,2544.1,0.7672]
[1729743448557,3.53717,2544.4,2544.2,0.17670685]
[1729743448792,3.53731,2544.3,2544.2,0.17670685]
[1729743451355,3.53747,2544.2,2544.0,0.7672]
[1729743451555,3.53747,2544.2,2544.1,0.17672419]
[1729743451785,3.53735,2544.3,2544.1,0.17672419]
[1729743452907,3.53719,2544.4,2544.1,0.17672419]
[1729743453055,3.53731,2544.3,2544.1,0.17672419]
[1729743455094,3.53719,2544.4,2544.1,0.17672419]
[1729743455297,3.53745,2544.2,2544.1,0.17672419]
[1729743455589,4.8324447,2544.2,2544.1,0.17672419]
[1729743455800,5.66942217,2544.2,2544.1,0.17672419]
[1729743456087,4.37442747,2544.2,2544.1,0.17672419]
[1729743456274,3.53782,2544.0,2543.8,0.7672]
[1729743456950,3.53782,2544.0,2543.9,0.1708515]
[1729743458623,3.53782,2544.0,2543.6,0.7672]
[1729743458624,1.2949947,2544.2,2543.6,0.7672]
[1729743458792,1.50115417,2544.2,2543.6,0.7672]
[1729743458996,3.53804,2543.8,2543.6,0.7672]
[1729743462129,3.53815,2543.7,2543.4,0.7781]
[1729743462731,3.5384,2543.6,2543.4,0.7781]
[1729743463441,3.53848,2543.5,2543.3,0.7781]
[1729743463941,3.5384,2543.6,2543.3,0.7781]
[1729743465227,3.53838,2543.6,2543.3,0.7781]
[1729743465441,2.0716947,2543.8,2543.3,0.7781]
[1729743465442,3.53845,2543.5,2543.3,0.7781]
[1729743465596,3.53828,2543.7,2543.3,0.7781]
[1729743465924,3.53811,2543.8,2543.4,2.0730947]
[1729743466493,3.53809,2543.8,2543.4,2.0730947]
[1729743467020,7.07619,2543.8,2543.4,0.7781]
[1729743467226,3.53809,2543.8,2543.4,0.7781]
[1729743467397,3.53801,2543.8,2543.4,0.7781]
[1729743467596,7.07609,2543.8,2543.4,0.7781]
[1729743467896,3.53801,2543.8,2543.4,0.7781]
[1729743468411,3.53801,2543.8,2543.4,2.0730947]
[1729743468815,3.53755,2544.2,2543.7,1.2949947]
[1729743469024,3.53755,2544.2,2543.8,2.0730947]
[1729743469205,1.2949947,2544.2,2543.8,0.7781]
[1729743469432,3.5378,2544.0,2543.8,0.7781]
[1729743471742,3.5378,2544.0,2543.9,0.17157061]
[1729743472473,3.53745,2544.2,2543.9,0.17157061]
[1729743472474,3.53759,2544.1,2543.9,0.17157061]
[1729743475204,3.53762,2544.1,2543.9,0.17157061]
[1729743480038,7.075,2544.2,2543.9,0.17157061]
[1729743484448,3.53745,2544.2,2543.9,0.17157061]
[1729743484984,4.8324447,2544.2,2543.9,0.17157061]
[1729743485483,3.53745,2544.2,2543.9,0.17157061]
[1729743487693,4.8324447,2544.2,2543.9,0.17157061]
[1729743487992,3.53745,2544.2,2543.9,0.17157061]
[1729743490181,7.075,2544.2,2543.9,0.17157061]
[1729743490360,3.53761,2544.1,2543.9,0.17157061]
[1729743491484,8.3699747,2544.2,2543.9,0.17157061]
[1729743491650,4.8324447,2544.2,2543.9,0.17157061]
[1729743492051,3.53745,2544.2,2543.9,0.17157061]
[1729743492587,7.07498,2544.2,2543.9,0.17157061]
[1729743492957,3.53745,2544.2,2543.9,0.17157061]
[1729743493163,7.07499,2544.2,2543.9,0.17157061]
[1729743493480,8.3699847,2544.2,2543.9,0.17157061]
[1729743493686,3.5376,2544.1,2543.9,0.17157061]
[1729743494881,3.53745,2544.2,2543.9,0.17157061]
[1729743495115,4.8324447,2544.2,2543.9,0.17157061]
[1729743495610,8.3699747,2544.2,2543.9,0.17157061]
[1729743495804,4.8324447,2544.2,2543.9,0.17157061]
[1729743496011,3.53745,2544.2,2543.9,0.17157061]
[1729743496186,4.8324447,2544.2,2543.9,0.17157061]
[1729743496806,3.53745,2544.2,2543.9,0.17157061]
[1729743497013,4.8324447,2544.2,2543.9,0.17157061]
[1729743497514,3.53745,2544.2,2543.9,0.17157061]
[1729743498011,4.8324447,2544.2,2543.9,0.17157061]
[1729743500113,8.3700047,2544.2,2543.9,0.17157061]
[1729743500611,3.5376,2544.1,2543.9,0.17157061]
[1729743502515,4.8324447,2544.2,2543.9,0.17157061]
[1729743503116,3.53745,2544.2,2543.9,0.17157061]
[1729743503417,3.53768,2544.1,2543.9,0.17157061]
[1729743505408,3.53748,2544.2,2543.9,0.17157061]
[1729743508128,4.8324747,2544.2,2543.9,0.17157061]
[1729743508337,3.53748,2544.2,2543.9,0.17157061]
[1729743509534,3.53762,2544.1,2543.9,0.17157061]
[1729743510334,4.8324747,2544.2,2543.9,0.17157061]
[1729743510636,8.93097217,2544.2,2543.9,0.17157061]
[1729743510932,7.63597747,2544.2,2543.9,0.17157061]
[1729743511141,4.09839747,2544.2,2543.9,0.17157061]
[1729743514226,3.53748,2544.2,2543.9,0.17157061]
[1729743517322,5.6370147,2544.1,2543.9,0.17157061]
[1729743517715,4.34202,2544.1,2543.6,3.53828]
[1729743517915,4.34202,2544.1,2544.0,0.17159657]
[1729743518151,4.34202,2544.1,2543.6,3.53828]
[1729743518333,8.3700347,2544.2,2544.0,0.17159657]
[1729743518538,8.3700347,2544.2,2543.8,0.7612]
[1729743518844,4.8324747,2544.2,2543.8,0.7612]
[1729743519155,4.8324747,2544.2,2543.9,0.17159657]
[1729743519654,3.53759,2544.1,2543.9,0.17159657]
[1729743520463,7.07529,2544.1,2543.9,0.17159657]
[1729743520615,3.53759,2544.1,2543.9,0.17159657]
[1729743523236,7.07528,2544.1,2543.9,0.17159657]
[1729743524757,3.53759,2544.1,2543.9,0.17159657]
[1729743524923,3.53773,2544.0,2543.9,0.17159657]
[1729743525819,3.53791,2543.9,2543.6,0.7612]
[1729743526017,3.53791,2543.9,2543.7,0.17161391]
[1729743529219,4.8330047,2543.8,2543.7,0.17161391]
[1729743529555,4.8330047,2543.8,2543.4,0.7612]
[1729743529556,3.53801,2543.8,2543.4,0.7612]
[1729743529762,3.53801,2543.8,2543.7,0.17161391]
[1729743529934,3.53815,2543.7,2543.4,0.7612]
[1729743530949,7.07641,2543.7,2543.4,0.7612]
[1729743531148,3.53815,2543.7,2543.4,0.7612]
[1729743532063,3.53815,2543.7,2543.5,0.17183054]
[1729743535465,0.8304,2543.8,2543.5,0.17183054]
[1729743535626,4.36848,2543.8,2543.5,0.17183054]
[1729743536255,3.53808,2543.8,2543.5,0.17183054]
[1729743538065,5.6450347,2544.0,2543.5,0.17183054]
[1729743538362,3.53803,2543.8,2543.5,0.17183054]
[1729743538935,3.53822,2543.7,2543.5,0.17183054]
[1729743540268,7.07616,2543.8,2543.5,0.17183054]
[1729743540460,3.53821,2543.7,2543.5,0.17183054]
[1729743540663,3.53803,2543.8,2543.5,0.17183054]
[1729743541236,7.07612,2543.8,2543.5,0.17183054]
[1729743541476,3.53803,2543.8,2543.5,0.17183054]
[1729743545474,3.53803,2543.8,2543.6,0.7908]
[1729743545773,3.53803,2543.8,2543.7,0.17191721]
[1729743546377,3.53816,2543.7,2543.4,0.7908]
[1729743546838,3.53816,2543.7,2543.5,0.17191721]
[1729743547776,3.53816,2543.7,2543.2,5.6245047]
[1729743547937,3.53816,2543.7,2543.6,0.17186521]
[1729743548281,3.53816,2543.7,2543.2,5.6245047]
[1729743548573,3.53816,2543.7,2543.2,6.54085917]
[1729743548775,3.53816,2543.7,2543.3,0.17185654]
[1729743548968,7.07644,2543.7,2543.3,0.17185654]
[1729743549474,3.53816,2543.7,2543.3,0.17185654]
[1729743550475,3.53816,2543.7,2543.3,1.46685124]
[1729743551271,3.53816,2543.7,2543.3,0.17185654]
[1729743551879,3.53816,2543.7,2543.3,1.46685124]
[1729743552979,3.53816,2543.7,2543.3,0.17185654]
[1729743553180,3.53816,2543.7,2543.3,1.46685124]
[1729743553478,0.8123,2543.8,2543.3,5.5930206]
[1729743553793,3.53798,2543.9,2543.5,0.7545]
[1729743554188,3.5377,2544.1,2543.5,2.0494947]
[1729743554386,3.53773,2544.0,2543.6,0.17185654]
[1729743554592,3.5377,2544.1,2543.6,3.71004654]
[1729743554768,4.36817,2544.2,2543.7,4.8330747]
[1729743554968,4.36817,2544.2,2543.8,0.7545]
[1729743555278,5.6631647,2544.2,2543.9,0.17185654]
[1729743555490,3.5376,2544.1,2543.9,0.17185654]
[1729743557498,3.53746,2544.2,2543.9,0.17185654]
[1729743557878,4.8324547,2544.2,2543.9,0.17185654]
[1729743558511,3.53745,2544.2,2543.9,0.17185654]
[1729743559002,4.8324447,2544.2,2543.9,0.17185654]
[1729743559208,3.53745,2544.2,2543.9,0.17185654]
[1729743559703,4.8323947,2544.3,2543.9,5.00471124]
[1729743559704,3.5374,2544.3,2543.9,5.00471124]
[1729743559903,3.53746,2544.2,2543.9,2.40444804]
[1729743560070,3.53746,2544.2,2543.9,1.10945334]
[1729743560270,3.53746,2544.2,2543.9,0.17185654]
[1729743567586,3.53768,2544.1,2543.9,0.17185654]
[1729743567788,7.0754,2544.1,2543.9,0.17185654]
[1729743568117,5.5950247,2544.0,2543.9,0.17185654]
[1729743568627,5.5950247,2544.0,2543.5,0.8296]
[1729743568628,3.53788,2543.9,2543.5,0.8296]
[1729743568783,4.8328747,2543.9,2543.5,0.8296]
[1729743569479,3.53788,2543.9,2543.5,0.8296]
[1729743570607,4.8328747,2543.9,2543.5,0.8296]
[1729743570991,3.53788,2543.9,2543.5,0.8296]